[Event "Early-Titled-Tuesday-Blitz-February-27-2024"]
[Site "Chess.com"]
[Date "2024.02.27"]
[Round "1"]
[White "FredddieCroderg"]
[Black "1mbl4"]
[Result "1-0"]
[WhiteElo "2292"]
[BlackElo "2595"]
[TimeControl "180+1"]
[EndTime "8:06:07 PST"]
[Termination "FredddieCroderg won by resignation"]

1. e4 {[%clk 0:02:59.9]} 1... g6 {[%clk 0:02:55.6]} 2. h4 {[%clk 0:02:58.6]}
2... h6 {[%clk 0:02:53.7]} 3. h5 {[%clk 0:02:57.8]} 3... g5 {[%clk 0:02:53.9]}
4. d4 {[%clk 0:02:57.8]} 4... Bg7 {[%clk 0:02:54.1]} 5. c4 {[%clk 0:02:54.8]}
5... d6 {[%clk 0:02:54.3]} 6. Nc3 {[%clk 0:02:54.3]} 6... Nc6 {[%clk 0:02:54.3]}
7. Be3 {[%clk 0:02:53.8]} 7... e5 {[%clk 0:02:52.7]} 8. d5 {[%clk 0:02:53.6]}
8... Nd4 {[%clk 0:02:53.1]} 9. Be2 {[%clk 0:02:53.1]} 9... Ne7 {[%clk
0:02:50.2]} 10. Nf3 {[%clk 0:02:49.6]} 10... c5 {[%clk 0:02:49.6]} 11. dxc6
{[%clk 0:02:48.6]} 11... Nexc6 {[%clk 0:02:49.6]} 12. Nd5 {[%clk 0:02:43.3]}
12... O-O {[%clk 0:02:41.9]} 13. Nxd4 {[%clk 0:02:39.3]} 13... Nxd4 {[%clk
0:02:41.3]} 14. Bxd4 {[%clk 0:02:38.3]} 14... exd4 {[%clk 0:02:42.2]} 15. Qd3
{[%clk 0:02:37.6]} 15... f5 {[%clk 0:02:40.5]} 16. O-O {[%clk 0:02:29.1]} 16...
fxe4 {[%clk 0:02:36.9]} 17. Qxe4 {[%clk 0:02:28.5]} 17... Re8 {[%clk 0:02:24.5]}
18. Qd3 {[%clk 0:02:23.2]} 18... Be6 {[%clk 0:02:23]} 19. Bf3 {[%clk 0:02:22.5]}
19... Rc8 {[%clk 0:02:20.8]} 20. Rfe1 {[%clk 0:02:20.2]} 20... Bf7 {[%clk
0:02:12.7]} 21. Bg4 {[%clk 0:02:15.4]} 21... Rc5 {[%clk 0:01:59]} 22. Rxe8+
{[%clk 0:02:07.1]} 22... Qxe8 {[%clk 0:01:59.9]} 23. Kf1 {[%clk 0:01:53.8]}
23... b5 {[%clk 0:01:48.3]} 24. Re1 {[%clk 0:01:51.6]} 24... Qb8 {[%clk
0:01:32]} 25. Be6 {[%clk 0:01:39.6]} 25... Qf8 {[%clk 0:00:50.3]} 26. Qg6 {[%clk
0:01:36.7]} 26... Bxe6 {[%clk 0:00:34.8]} 27. Rxe6 {[%clk 0:01:32.6]} 27... Rxd5
{[%clk 0:00:16.6]} 28. cxd5 {[%clk 0:01:23.2]} 28... d3 {[%clk 0:00:15.1]} 29.
Re8 {[%clk 0:01:19.8]} 29... d2 {[%clk 0:00:15.3]} 30. Rxf8+ {[%clk 0:01:18.9]}
30... Kxf8 {[%clk 0:00:16.2]} 31. Ke2 {[%clk 0:01:19]} 31... Bxb2 {[%clk
0:00:14.3]} 32. Qxd6+ {[%clk 0:01:17.3]} 32... Kf7 {[%clk 0:00:14.3]} 33. Qe6+
{[%clk 0:01:16.9]} 33... Kg7 {[%clk 0:00:14.4]} 34. d6 {[%clk 0:01:16.4]} 1-0

[Event "Early-Titled-Tuesday-Blitz-February-27-2024"]
[Site "Chess.com"]
[Date "2024.02.27"]
[Round "1"]
[White "Mops_2004"]
[Black "NovakRatko"]
[Result "1-0"]
[WhiteElo "2835"]
[BlackElo "2469"]
[TimeControl "180+1"]
[EndTime "8:06:10 PST"]
[Termination "Mops_2004 won on time"]

1. g3 {[%clk 0:03:00.9]} 1... d5 {[%clk 0:02:55.2]} 2. Nf3 {[%clk 0:02:47.3]}
2... c5 {[%clk 0:02:40.1]} 3. Bg2 {[%clk 0:02:46.9]} 3... Nc6 {[%clk 0:02:39.3]}
4. d4 {[%clk 0:02:45.1]} 4... f6 {[%clk 0:02:38.6]} 5. c4 {[%clk 0:02:41.2]}
5... dxc4 {[%clk 0:02:37.3]} 6. d5 {[%clk 0:02:40.4]} 6... Na5 {[%clk
0:02:34.2]} 7. Nc3 {[%clk 0:02:36.2]} 7... e5 {[%clk 0:02:29.5]} 8. O-O {[%clk
0:02:25.6]} 8... a6 {[%clk 0:02:28.6]} 9. a4 {[%clk 0:02:02.8]} 9... Bg4 {[%clk
0:02:14.3]} 10. h3 {[%clk 0:01:57.2]} 10... Bh5 {[%clk 0:02:13.2]} 11. Nh4
{[%clk 0:01:42.3]} 11... g5 {[%clk 0:01:56.3]} 12. Nf5 {[%clk 0:01:40.9]} 12...
Bg6 {[%clk 0:01:55.4]} 13. e4 {[%clk 0:01:36.4]} 13... Bd6 {[%clk 0:01:49.3]}
14. Ng7+ {[%clk 0:01:35]} 14... Kf7 {[%clk 0:01:47.6]} 15. Ne6 {[%clk
0:01:34.6]} 15... Qd7 {[%clk 0:01:40.5]} 16. f4 {[%clk 0:01:34.7]} 16... exf4
{[%clk 0:01:23.9]} 17. gxf4 {[%clk 0:01:34.3]} 17... Nb3 {[%clk 0:01:21.6]} 18.
e5 {[%clk 0:01:25.1]} 18... Nxa1 {[%clk 0:01:10.8]} 19. exd6 {[%clk 0:01:25.1]}
19... Nb3 {[%clk 0:00:35]} 20. f5 {[%clk 0:01:21.9]} 20... Nxc1 {[%clk
0:00:31.6]} 21. fxg6+ {[%clk 0:01:21.9]} 21... hxg6 {[%clk 0:00:31.1]} 22. Nxg5+
{[%clk 0:01:14.7]} 22... Kg7 {[%clk 0:00:11.2]} 23. Ne6+ {[%clk 0:01:14.5]}
23... Kh7 {[%clk 0:00:11.4]} 24. Qxc1 {[%clk 0:01:14]} 24... Qxd6 {[%clk
0:00:10.3]} 25. Qe1 {[%clk 0:01:08.7]} 25... Nh6 {[%clk 0:00:03.9]} 26. Ne4
{[%clk 0:01:06.5]} 26... Qe5 {[%clk 0:00:03.2]} 27. Nxf6+ {[%clk 0:01:06.8]} 1-0

[Event "Early-Titled-Tuesday-Blitz-February-27-2024"]
[Site "Chess.com"]
[Date "2024.02.27"]
[Round "1"]
[White "Alina_Gumerovna"]
[Black "Pedrada88"]
[Result "0-1"]
[WhiteElo "2095"]
[BlackElo "2560"]
[TimeControl "180+1"]
[EndTime "8:06:10 PST"]
[Termination "Pedrada88 won on time"]

1. e4 {[%clk 0:03:00.3]} 1... c6 {[%clk 0:02:56.2]} 2. d4 {[%clk 0:03:00.1]}
2... d5 {[%clk 0:02:56.4]} 3. exd5 {[%clk 0:03:00.7]} 3... cxd5 {[%clk
0:02:56.2]} 4. Bd3 {[%clk 0:03:01.4]} 4... Nf6 {[%clk 0:02:55.7]} 5. h3 {[%clk
0:03:01.1]} 5... g6 {[%clk 0:02:55.2]} 6. Nf3 {[%clk 0:02:57.3]} 6... Bf5 {[%clk
0:02:55.3]} 7. O-O {[%clk 0:02:54.6]} 7... Bxd3 {[%clk 0:02:54.6]} 8. Qxd3
{[%clk 0:02:54.1]} 8... Bg7 {[%clk 0:02:54.8]} 9. Bg5 {[%clk 0:02:48.8]} 9...
O-O {[%clk 0:02:54.3]} 10. Re1 {[%clk 0:02:41.8]} 10... Nc6 {[%clk 0:02:53.6]}
11. c3 {[%clk 0:02:40.2]} 11... Rb8 {[%clk 0:02:47.9]} 12. a4 {[%clk 0:02:33.8]}
12... a6 {[%clk 0:02:47.3]} 13. Na3 {[%clk 0:02:34.5]} 13... Na5 {[%clk
0:02:42.4]} 14. b4 {[%clk 0:02:28.8]} 14... Nc6 {[%clk 0:02:37.6]} 15. b5 {[%clk
0:02:17.5]} 15... axb5 {[%clk 0:02:35.3]} 16. axb5 {[%clk 0:01:46.8]} 16... Na5
{[%clk 0:02:35.3]} 17. Bf4 {[%clk 0:01:36.7]} 17... Rc8 {[%clk 0:02:35.5]} 18.
Ne5 {[%clk 0:01:35.1]} 18... Ne4 {[%clk 0:02:31.2]} 19. Rac1 {[%clk 0:01:14.5]}
19... e6 {[%clk 0:02:05.1]} 20. c4 {[%clk 0:01:12.9]} 20... Nd6 {[%clk
0:01:54.2]} 21. c5 {[%clk 0:01:07.7]} 21... Nf5 {[%clk 0:01:53.7]} 22. g4 {[%clk
0:00:22.7]} 22... Nxd4 {[%clk 0:01:53.5]} 23. Qxd4 {[%clk 0:00:20.2]} 23... Nb3
{[%clk 0:01:54.1]} 24. Qd3 {[%clk 0:00:14.1]} 24... Nxc1 {[%clk 0:01:53.1]} 25.
Rxc1 {[%clk 0:00:14.2]} 25... Qa5 {[%clk 0:01:43.5]} 26. c6 {[%clk 0:00:12]}
26... Qb4 {[%clk 0:01:40.2]} 27. Nd7 {[%clk 0:00:07.9]} 27... Qxf4 {[%clk
0:01:37.6]} 28. Rc2 {[%clk 0:00:03.5]} 28... bxc6 {[%clk 0:01:33.8]} 29. Nxf8
{[%clk 0:00:02.9]} 29... Bxf8 {[%clk 0:01:32.2]} 30. bxc6 {[%clk 0:00:02.5]}
30... Qa4 {[%clk 0:01:26.2]} 31. Nb5 {[%clk 0:00:02.7]} 31... e5 {[%clk
0:01:21.2]} 32. Rc4 {[%clk 0:00:01.5]} 32... Qxc4 {[%clk 0:01:20.2]} 0-1

[Event "Early-Titled-Tuesday-Blitz-February-27-2024"]
[Site "Chess.com"]
[Date "2024.02.27"]
[Round "1"]
[White "Schachmalanders"]
[Black "ilqar_74"]
[Result "0-1"]
[WhiteElo "2467"]
[BlackElo "2833"]
[TimeControl "180+1"]
[EndTime "8:06:14 PST"]
[Termination "ilqar_74 won by resignation"]

1. e4 {[%clk 0:03:00.9]} 1... c5 {[%clk 0:02:59.1]} 2. Nc3 {[%clk 0:03:00.1]}
2... d6 {[%clk 0:02:59.5]} 3. g3 {[%clk 0:03:00.7]} 3... g6 {[%clk 0:02:59.6]}
4. Bg2 {[%clk 0:03:01.1]} 4... Bg7 {[%clk 0:03:00.2]} 5. Nge2 {[%clk 0:03:01.6]}
5... Nc6 {[%clk 0:03:00.7]} 6. d3 {[%clk 0:03:01.9]} 6... e6 {[%clk 0:03:01.2]}
7. Be3 {[%clk 0:03:02]} 7... Nge7 {[%clk 0:03:01.7]} 8. Qd2 {[%clk 0:03:02.5]}
8... Nd4 {[%clk 0:03:00.9]} 9. O-O-O {[%clk 0:03:02.4]} 9... h5 {[%clk
0:02:56.8]} 10. Kb1 {[%clk 0:03:01]} 10... Rb8 {[%clk 0:02:56.7]} 11. f4 {[%clk
0:03:00.7]} 11... b5 {[%clk 0:02:56.2]} 12. e5 {[%clk 0:02:53.6]} 12... Nef5
{[%clk 0:02:43.5]} 13. exd6 {[%clk 0:02:50.3]} 13... Nxe3 {[%clk 0:02:34]} 14.
Qxe3 {[%clk 0:02:49.5]} 14... Qxd6 {[%clk 0:02:31.9]} 15. Ne4 {[%clk 0:02:47.7]}
15... Qe7 {[%clk 0:02:27.6]} 16. h3 {[%clk 0:02:39.5]} 16... Bb7 {[%clk
0:02:22.8]} 17. g4 {[%clk 0:02:36.2]} 17... b4 {[%clk 0:02:20.6]} 18. Qf2 {[%clk
0:02:29.3]} 18... Nb5 {[%clk 0:01:59.3]} 19. Rhg1 {[%clk 0:02:14.1]} 19... hxg4
{[%clk 0:01:17.4]} 20. hxg4 {[%clk 0:02:12.3]} 20... c4 {[%clk 0:01:01.6]} 21.
dxc4 {[%clk 0:02:07.6]} 21... Na3+ {[%clk 0:00:58.8]} 22. bxa3 {[%clk
0:01:58.1]} 22... Bxe4 {[%clk 0:00:55.5]} 23. Bxe4 {[%clk 0:01:49.6]} 23...
bxa3+ {[%clk 0:00:52.9]} 24. Kc1 {[%clk 0:01:50.3]} 24... Qb4 {[%clk 0:00:41.9]}
25. Rd4 {[%clk 0:01:23.6]} 25... Bxd4 {[%clk 0:00:12.5]} 26. Nxd4 {[%clk
0:01:20.9]} 26... Qb2+ {[%clk 0:00:09.3]} 27. Kd2 {[%clk 0:01:18]} 27... Rd8
{[%clk 0:00:09]} 28. Bd3 {[%clk 0:00:58.6]} 28... Qxd4 {[%clk 0:00:08.3]} 29. f5
{[%clk 0:00:59.5]} 29... Qxf2+ {[%clk 0:00:07.9]} 0-1

[Event "Early-Titled-Tuesday-Blitz-February-27-2024"]
[Site "Chess.com"]
[Date "2024.02.27"]
[Round "1"]
[White "AsaHoffmann"]
[Black "kleinebeer98"]
[Result "0-1"]
[WhiteElo "2486"]
[BlackElo "2871"]
[TimeControl "180+1"]
[EndTime "8:06:20 PST"]
[Termination "kleinebeer98 won by resignation"]

1. d4 {[%clk 0:02:55]} 1... Nf6 {[%clk 0:02:57.8]} 2. Bg5 {[%clk 0:02:53.4]}
2... g6 {[%clk 0:02:56.1]} 3. Nc3 {[%clk 0:02:52.7]} 3... Bg7 {[%clk 0:02:55.6]}
4. e4 {[%clk 0:02:52.6]} 4... d6 {[%clk 0:02:55.9]} 5. f3 {[%clk 0:02:52.6]}
5... c6 {[%clk 0:02:53.5]} 6. Qd2 {[%clk 0:02:52.4]} 6... h6 {[%clk 0:02:52.8]}
7. Be3 {[%clk 0:02:51.9]} 7... Nbd7 {[%clk 0:02:53.2]} 8. a4 {[%clk 0:02:51.6]}
8... a6 {[%clk 0:02:48.2]} 9. Nh3 {[%clk 0:02:51.3]} 9... Rb8 {[%clk 0:02:48]}
10. a5 {[%clk 0:02:49.4]} 10... b5 {[%clk 0:02:39.7]} 11. axb6 {[%clk
0:02:47.8]} 11... Qxb6 {[%clk 0:02:38]} 12. b3 {[%clk 0:02:43.6]} 12... c5
{[%clk 0:02:29.9]} 13. dxc5 {[%clk 0:02:29.9]} 13... Nxc5 {[%clk 0:02:27.2]} 14.
Nf2 {[%clk 0:02:29.2]} 14... Qb4 {[%clk 0:02:20.2]} 15. Nfd1 {[%clk 0:02:19.7]}
15... O-O {[%clk 0:01:51.8]} 16. Bc4 {[%clk 0:02:01.8]} 16... Nfxe4 {[%clk
0:01:09.9]} 17. fxe4 {[%clk 0:01:59.3]} 17... Nxe4 {[%clk 0:01:10.5]} 18. Nxe4
{[%clk 0:01:51.6]} 18... Bxa1 {[%clk 0:01:08.4]} 19. Qxb4 {[%clk 0:01:46.6]}
19... Rxb4 {[%clk 0:01:09.3]} 20. O-O {[%clk 0:01:28.4]} 20... Bf5 {[%clk
0:01:06.8]} 21. Rxf5 {[%clk 0:01:18.9]} 21... gxf5 {[%clk 0:01:06]} 22. Ng3
{[%clk 0:01:18.6]} 22... e6 {[%clk 0:01:03.7]} 23. Bxh6 {[%clk 0:01:16.8]} 23...
Rc8 {[%clk 0:01:01.8]} 24. Bd2 {[%clk 0:01:12.9]} 24... Rbxc4 {[%clk 0:00:58.1]}
25. bxc4 {[%clk 0:01:12.5]} 25... Rxc4 {[%clk 0:00:59]} 26. c3 {[%clk
0:01:11.1]} 26... a5 {[%clk 0:00:56.2]} 27. Nf1 {[%clk 0:01:11]} 27... f4 {[%clk
0:00:52.4]} 28. g3 {[%clk 0:01:10.4]} 28... e5 {[%clk 0:00:51.6]} 29. gxf4
{[%clk 0:01:07.4]} 29... exf4 {[%clk 0:00:52.5]} 30. Kf2 {[%clk 0:01:01.6]}
30... a4 {[%clk 0:00:53.1]} 31. Ke2 {[%clk 0:01:01.9]} 31... a3 {[%clk
0:00:49.9]} 32. Kd3 {[%clk 0:01:02.1]} 32... a2 {[%clk 0:00:46.8]} 33. Kxc4
{[%clk 0:00:58.3]} 33... Bb2 {[%clk 0:00:47.4]} 34. Nxb2 {[%clk 0:00:58.2]}
34... a1=Q {[%clk 0:00:48.1]} 35. Nd3 {[%clk 0:00:53.7]} 35... Qxf1 {[%clk
0:00:46.8]} 36. Bxf4 {[%clk 0:00:53.1]} 36... d5+ {[%clk 0:00:40.8]} 37. Kd4
{[%clk 0:00:51.9]} 37... Qf3 {[%clk 0:00:40.1]} 38. Bg3 {[%clk 0:00:48.5]} 38...
Qe4+ {[%clk 0:00:40.5]} 39. Kc5 {[%clk 0:00:46.7]} 39... Qxd3 {[%clk 0:00:41.2]}
0-1

[Event "Early-Titled-Tuesday-Blitz-February-27-2024"]
[Site "Chess.com"]
[Date "2024.02.27"]
[Round "1"]
[White "novocane"]
[Black "Semen16"]
[Result "0-1"]
[WhiteElo "2404"]
[BlackElo "2723"]
[TimeControl "180+1"]
[EndTime "8:06:23 PST"]
[Termination "Semen16 won on time"]

1. d4 {[%clk 0:02:59]} 1... d5 {[%clk 0:02:59.2]} 2. c4 {[%clk 0:02:57.3]} 2...
e6 {[%clk 0:02:59.9]} 3. Nc3 {[%clk 0:02:56.8]} 3... Nf6 {[%clk 0:03:00.5]} 4.
cxd5 {[%clk 0:02:56.6]} 4... exd5 {[%clk 0:03:01.4]} 5. Bg5 {[%clk 0:02:56.3]}
5... c6 {[%clk 0:03:01.2]} 6. Qc2 {[%clk 0:02:56.1]} 6... Be7 {[%clk 0:02:57.1]}
7. e3 {[%clk 0:02:55.7]} 7... Nbd7 {[%clk 0:02:55.1]} 8. Bd3 {[%clk 0:02:55.3]}
8... Nf8 {[%clk 0:02:52.6]} 9. Nf3 {[%clk 0:02:54.7]} 9... Ne6 {[%clk
0:02:52.1]} 10. Bxf6 {[%clk 0:02:54.2]} 10... Bxf6 {[%clk 0:02:53]} 11. O-O
{[%clk 0:02:53.3]} 11... g6 {[%clk 0:02:51.6]} 12. b4 {[%clk 0:02:52.7]} 12...
O-O {[%clk 0:02:50.7]} 13. b5 {[%clk 0:02:52.4]} 13... c5 {[%clk 0:02:49.2]} 14.
dxc5 {[%clk 0:02:49.9]} 14... Nxc5 {[%clk 0:02:50]} 15. Rac1 {[%clk 0:02:38.9]}
15... Bg4 {[%clk 0:02:45.9]} 16. Nd4 {[%clk 0:02:24.7]} 16... Rc8 {[%clk
0:02:41.7]} 17. Be2 {[%clk 0:02:20.2]} 17... Bxe2 {[%clk 0:02:27]} 18. Ncxe2
{[%clk 0:02:08.5]} 18... Qd7 {[%clk 0:02:23.1]} 19. Rfd1 {[%clk 0:01:54.9]}
19... Bg7 {[%clk 0:02:13.7]} 20. a4 {[%clk 0:01:36]} 20... Rfd8 {[%clk
0:02:12.3]} 21. Qa2 {[%clk 0:01:32.1]} 21... Ne4 {[%clk 0:02:09.2]} 22. Nf3
{[%clk 0:00:58.8]} 22... Rxc1 {[%clk 0:01:56]} 23. Rxc1 {[%clk 0:00:57.4]} 23...
Qd6 {[%clk 0:01:56.3]} 24. h3 {[%clk 0:00:50.1]} 24... Qb4 {[%clk 0:01:54.5]}
25. Rd1 {[%clk 0:00:45.4]} 25... Qc5 {[%clk 0:01:47.6]} 26. Qb1 {[%clk
0:00:37.6]} 26... h6 {[%clk 0:01:45.4]} 27. Rc1 {[%clk 0:00:34.6]} 27... Qa3
{[%clk 0:01:44.7]} 28. Qc2 {[%clk 0:00:30.6]} 28... Re8 {[%clk 0:01:40.7]} 29.
Ned4 {[%clk 0:00:26]} 29... h5 {[%clk 0:01:32.8]} 30. Rd1 {[%clk 0:00:18.6]}
30... Bh6 {[%clk 0:01:31.7]} 31. Ne2 {[%clk 0:00:09.3]} 31... Bxe3 {[%clk
0:01:12.1]} 32. fxe3 {[%clk 0:00:04.2]} 32... Qxe3+ {[%clk 0:01:13]} 33. Kh2
{[%clk 0:00:03.3]} 33... Nf2 {[%clk 0:01:13.7]} 34. Re1 {[%clk 0:00:01.9]} 34...
Nd3 {[%clk 0:01:13.6]} 0-1

[Event "Early-Titled-Tuesday-Blitz-February-27-2024"]
[Site "Chess.com"]
[Date "2024.02.27"]
[Round "1"]
[White "Happy1712Drummer"]
[Black "ArtemDyachuk"]
[Result "0-1"]
[WhiteElo "2399"]
[BlackElo "2704"]
[TimeControl "180+1"]
[EndTime "8:06:23 PST"]
[Termination "ArtemDyachuk won by resignation"]

1. e4 {[%clk 0:03:00.9]} 1... c5 {[%clk 0:02:52.2]} 2. Nf3 {[%clk 0:02:59.3]}
2... d6 {[%clk 0:02:52.3]} 3. d4 {[%clk 0:02:59.9]} 3... cxd4 {[%clk 0:02:53.2]}
4. Nxd4 {[%clk 0:03:00.3]} 4... Nf6 {[%clk 0:02:53.7]} 5. Nc3 {[%clk 0:03:00.2]}
5... a6 {[%clk 0:02:54.1]} 6. Bc4 {[%clk 0:02:53.6]} 6... e6 {[%clk 0:02:50.5]}
7. Bb3 {[%clk 0:02:52.9]} 7... Be7 {[%clk 0:02:49.3]} 8. O-O {[%clk 0:02:52.6]}
8... O-O {[%clk 0:02:49.1]} 9. f4 {[%clk 0:02:50.1]} 9... Nbd7 {[%clk
0:02:49.2]} 10. f5 {[%clk 0:02:41.1]} 10... Nc5 {[%clk 0:02:48.2]} 11. Qe2
{[%clk 0:02:34.4]} 11... Qc7 {[%clk 0:02:42.1]} 12. Bg5 {[%clk 0:02:30.4]} 12...
Bd7 {[%clk 0:02:38.2]} 13. Rad1 {[%clk 0:02:11.8]} 13... b5 {[%clk 0:02:32.9]}
14. fxe6 {[%clk 0:02:04.2]} 14... fxe6 {[%clk 0:02:32]} 15. Nf5 {[%clk
0:01:57.4]} 15... Rae8 {[%clk 0:02:20.5]} 16. Nxe7+ {[%clk 0:01:55.9]} 16...
Rxe7 {[%clk 0:02:21.4]} 17. Bxf6 {[%clk 0:01:51.3]} 17... gxf6 {[%clk
0:02:17.1]} 18. Qg4+ {[%clk 0:01:50.7]} 18... Rg7 {[%clk 0:02:16]} 19. Qh4
{[%clk 0:01:47.5]} 19... b4 {[%clk 0:02:03.8]} 20. Ne2 {[%clk 0:01:38]} 20...
Bb5 {[%clk 0:02:03.2]} 21. Rde1 {[%clk 0:01:34.1]} 21... Qe7 {[%clk 0:01:52.3]}
22. Rf3 {[%clk 0:01:23.8]} 22... a5 {[%clk 0:01:50.2]} 23. a3 {[%clk 0:01:20]}
23... a4 {[%clk 0:01:30.7]} 24. axb4 {[%clk 0:01:19.8]} 24... axb3 {[%clk
0:01:30]} 25. bxc5 {[%clk 0:01:20.1]} 25... bxc2 {[%clk 0:01:29.9]} 26. cxd6
{[%clk 0:01:20.3]} 26... Qa7+ {[%clk 0:01:29.3]} 27. Kh1 {[%clk 0:01:18.2]}
27... Bxe2 {[%clk 0:01:28.8]} 28. Rxf6 {[%clk 0:01:06.1]} 28... Rxf6 {[%clk
0:01:19.6]} 29. Qxf6 {[%clk 0:01:06.2]} 29... Qf7 {[%clk 0:01:19.7]} 30. Qd8+
{[%clk 0:01:05.7]} 30... Qf8 {[%clk 0:01:18.9]} 31. Qa5 {[%clk 0:00:49.6]} 31...
Bf3 {[%clk 0:01:15.5]} 32. Qd2 {[%clk 0:00:15]} 32... Bxg2+ {[%clk 0:01:10.3]}
33. Qxg2 {[%clk 0:00:13.5]} 33... Rxg2 {[%clk 0:01:11.2]} 34. Kxg2 {[%clk
0:00:14.4]} 34... Qxd6 {[%clk 0:01:11.4]} 35. e5 {[%clk 0:00:11.3]} 35... Qd2+
{[%clk 0:01:11.1]} 0-1

[Event "Early-Titled-Tuesday-Blitz-February-27-2024"]
[Site "Chess.com"]
[Date "2024.02.27"]
[Round "1"]
[White "SaqoChess_Twitch"]
[Black "kidagent"]
[Result "1/2-1/2"]
[WhiteElo "2623"]
[BlackElo "2311"]
[TimeControl "180+1"]
[EndTime "8:06:27 PST"]
[Termination "Game drawn by repetition"]

1. d4 {[%clk 0:02:20.5]} 1... d5 {[%clk 0:02:59.6]} 2. c4 {[%clk 0:02:19.8]}
2... c6 {[%clk 0:02:59.7]} 3. Nc3 {[%clk 0:02:19.5]} 3... e6 {[%clk 0:02:58.7]}
4. e3 {[%clk 0:02:19.7]} 4... Nf6 {[%clk 0:02:58.1]} 5. Nf3 {[%clk 0:02:20.3]}
5... Nbd7 {[%clk 0:02:56.7]} 6. Bd3 {[%clk 0:02:20.9]} 6... dxc4 {[%clk
0:02:55.9]} 7. Bxc4 {[%clk 0:02:21.2]} 7... b5 {[%clk 0:02:56.2]} 8. Bd3 {[%clk
0:02:21.5]} 8... Be7 {[%clk 0:02:54.2]} 9. e4 {[%clk 0:02:19.3]} 9... b4 {[%clk
0:02:53.2]} 10. Na4 {[%clk 0:02:19.3]} 10... Qa5 {[%clk 0:02:50]} 11. O-O {[%clk
0:02:17.3]} 11... O-O {[%clk 0:02:48.3]} 12. e5 {[%clk 0:02:15.2]} 12... Nd5
{[%clk 0:02:47.9]} 13. h4 {[%clk 0:02:03.6]} 13... Rd8 {[%clk 0:02:44.2]} 14.
Bg5 {[%clk 0:02:03.2]} 14... Nf8 {[%clk 0:02:41.7]} 15. Bxe7 {[%clk 0:01:57.9]}
15... Nxe7 {[%clk 0:02:41.3]} 16. b3 {[%clk 0:01:54.7]} 16... Ba6 {[%clk
0:02:37.8]} 17. Bxa6 {[%clk 0:01:52.4]} 17... Qxa6 {[%clk 0:02:38.7]} 18. Qd2
{[%clk 0:01:51.3]} 18... Qb5 {[%clk 0:02:32.6]} 19. Rac1 {[%clk 0:01:43.7]}
19... Rd5 {[%clk 0:02:31.4]} 20. Qe3 {[%clk 0:01:39.8]} 20... Rad8 {[%clk
0:02:28.3]} 21. g4 {[%clk 0:01:35.9]} 21... a5 {[%clk 0:02:20.3]} 22. Rfd1
{[%clk 0:01:31.3]} 22... Nfg6 {[%clk 0:02:10.9]} 23. h5 {[%clk 0:01:26.3]} 23...
Nf8 {[%clk 0:02:07.9]} 24. Rc5 {[%clk 0:01:20.6]} 24... Rxc5 {[%clk 0:02:06.6]}
25. Nxc5 {[%clk 0:01:21.3]} 25... Qxc5 {[%clk 0:01:55.2]} 26. dxc5 {[%clk
0:01:20.5]} 26... Rxd1+ {[%clk 0:01:56.1]} 27. Kh2 {[%clk 0:01:18.3]} 27... Nd5
{[%clk 0:01:55.3]} 28. Qe2 {[%clk 0:01:10.1]} 28... Ra1 {[%clk 0:01:53.7]} 29.
Nd4 {[%clk 0:01:06.1]} 29... Nc3 {[%clk 0:01:49.7]} 30. Qf3 {[%clk 0:01:06.3]}
30... Rxa2 {[%clk 0:01:48.2]} 31. Nxc6 {[%clk 0:01:05.9]} 31... Nd7 {[%clk
0:01:45.2]} 32. Ne7+ {[%clk 0:00:48.1]} 32... Kf8 {[%clk 0:01:44.6]} 33. Qb7
{[%clk 0:00:27.5]} 33... Nxc5 {[%clk 0:01:35.4]} 34. Qa7 {[%clk 0:00:19.7]}
34... Rxf2+ {[%clk 0:01:30.6]} 35. Kg1 {[%clk 0:00:19.8]} 35... Nd3 {[%clk
0:01:27.9]} 36. Nc6 {[%clk 0:00:16.5]} 36... Ne2+ {[%clk 0:01:27.1]} 37. Kh1
{[%clk 0:00:16.5]} 37... Rf1+ {[%clk 0:01:15.3]} 38. Kh2 {[%clk 0:00:11.4]}
38... Rf2+ {[%clk 0:01:14.4]} 39. Kh1 {[%clk 0:00:07.8]} 39... Ng3+ {[%clk
0:01:13.9]} 40. Kg1 {[%clk 0:00:08]} 40... Ne2+ {[%clk 0:01:09.3]} 41. Kh1
{[%clk 0:00:08.4]} 1/2-1/2

[Event "Early-Titled-Tuesday-Blitz-February-27-2024"]
[Site "Chess.com"]
[Date "2024.02.27"]
[Round "1"]
[White "wild3000"]
[Black "Evgeny81"]
[Result "0-1"]
[WhiteElo "2434"]
[BlackElo "2761"]
[TimeControl "180+1"]
[EndTime "8:06:30 PST"]
[Termination "Evgeny81 won by resignation"]

1. d4 {[%clk 0:03:00.9]} 1... Nf6 {[%clk 0:02:59.2]} 2. Nf3 {[%clk 0:03:00.5]}
2... c5 {[%clk 0:02:57.1]} 3. e3 {[%clk 0:02:58.6]} 3... g6 {[%clk 0:02:56.2]}
4. Be2 {[%clk 0:02:56.8]} 4... Bg7 {[%clk 0:02:56.8]} 5. O-O {[%clk 0:02:56.7]}
5... cxd4 {[%clk 0:02:55.6]} 6. exd4 {[%clk 0:02:55.9]} 6... d5 {[%clk 0:02:56]}
7. c3 {[%clk 0:02:51.7]} 7... O-O {[%clk 0:02:56.9]} 8. Nbd2 {[%clk 0:02:51.3]}
8... Nc6 {[%clk 0:02:53.6]} 9. Re1 {[%clk 0:02:51.3]} 9... Bf5 {[%clk 0:02:53]}
10. Nb3 {[%clk 0:02:45.9]} 10... Ne4 {[%clk 0:02:51]} 11. Bf4 {[%clk 0:02:43.7]}
11... Rc8 {[%clk 0:02:42.6]} 12. h3 {[%clk 0:02:40.6]} 12... Kh8 {[%clk
0:02:42.5]} 13. Nh4 {[%clk 0:02:30.7]} 13... Bd7 {[%clk 0:02:34.3]} 14. Bd3
{[%clk 0:02:23.4]} 14... e5 {[%clk 0:02:27.7]} 15. Bg3 {[%clk 0:02:13]} 15...
Nxg3 {[%clk 0:02:24.3]} 16. fxg3 {[%clk 0:02:13.9]} 16... e4 {[%clk 0:02:24.6]}
17. Bxe4 {[%clk 0:01:56.3]} 17... dxe4 {[%clk 0:02:23.6]} 18. Rxe4 {[%clk
0:01:57.2]} 18... Be6 {[%clk 0:02:16.1]} 19. Nf3 {[%clk 0:01:54]} 19... Bd5
{[%clk 0:02:15.6]} 20. Re1 {[%clk 0:01:53.4]} 20... Re8 {[%clk 0:02:12.5]} 21.
Qd3 {[%clk 0:01:50.2]} 21... Qd6 {[%clk 0:02:11.2]} 22. Ng5 {[%clk 0:01:42.2]}
22... h6 {[%clk 0:02:02.9]} 23. Ne4 {[%clk 0:01:31.2]} 23... Bxe4 {[%clk
0:02:02.3]} 24. Rxe4 {[%clk 0:01:31.5]} 24... Rxe4 {[%clk 0:02:03.2]} 25. Qxe4
{[%clk 0:01:32.3]} 25... Qxg3 {[%clk 0:02:03.9]} 26. Rf1 {[%clk 0:01:26.6]}
26... Rf8 {[%clk 0:01:57]} 27. Nc5 {[%clk 0:01:21.4]} 27... Qc7 {[%clk
0:01:52.9]} 28. Qd5 {[%clk 0:01:19.7]} 28... Nd8 {[%clk 0:01:41.5]} 29. Nd7
{[%clk 0:01:16]} 29... Re8 {[%clk 0:01:39.7]} 30. Nc5 {[%clk 0:01:12.9]} 30...
Qc6 {[%clk 0:01:33.8]} 31. Qxc6 {[%clk 0:01:05.7]} 31... bxc6 {[%clk 0:01:33.3]}
32. Kf2 {[%clk 0:01:05.8]} 32... Re7 {[%clk 0:01:28.7]} 33. b4 {[%clk 0:01:03]}
33... Kg8 {[%clk 0:01:27.6]} 34. a4 {[%clk 0:01:02.9]} 34... Nb7 {[%clk
0:01:25.8]} 35. Nd3 {[%clk 0:00:59.4]} 35... Nd6 {[%clk 0:01:25]} 36. Rc1 {[%clk
0:00:53.8]} 36... Nc4 {[%clk 0:01:22.9]} 37. b5 {[%clk 0:00:50.3]} 37... cxb5
{[%clk 0:01:18.9]} 38. axb5 {[%clk 0:00:51.2]} 38... h5 {[%clk 0:01:17.5]} 39.
Ra1 {[%clk 0:00:46.5]} 39... Re3 {[%clk 0:01:16.8]} 40. Ra4 {[%clk 0:00:39.1]}
40... Rxd3 {[%clk 0:01:14.6]} 41. Rxc4 {[%clk 0:00:38.9]} 41... Rxc3 {[%clk
0:01:02.8]} 42. Ra4 {[%clk 0:00:35.9]} 42... Rb3 {[%clk 0:00:57]} 43. Rxa7
{[%clk 0:00:33.8]} 43... Bxd4+ {[%clk 0:00:56.3]} 0-1